bitfinex/quotes_SOLUSD_20240625
["timestamp","ask_amount","ask_price","bid_price","bid_amount"]
[1719315622435,7.2496,137.94,137.86,15.4643]
[1719315622735,7.249,137.95,137.86,15.4643]
[1719315624336,7.2496,137.94,137.86,15.4643]
[1719315624539,7.249,137.95,137.86,15.4643]
[1719315624716,7.2486,137.96,137.87,0.34]
[1719315624904,14.73728684,137.97,137.87,20.34]
[1719315625238,7.248,137.97,137.87,20.34]
[1719315626243,7.2485,137.96,137.87,20.34]
[1719315627013,7.2485,137.96,137.88,1.30456603]
[1719315627236,7.2485,137.96,137.89,0.34]
[1719315627431,7.2481,137.97,137.89,0.34]
[1719315627743,7.2476,137.98,137.89,0.34]
[1719315628033,7.2476,137.98,137.9,0.17]
[1719315628239,7.2476,137.98,137.91,6.5206]
[1719315629334,7.2481,137.97,137.91,6.5206]
[1719315629814,7.2475,137.98,137.91,6.5206]
[1719315630348,7.248,137.97,137.91,6.5206]
[1719315631538,7.2476,137.98,137.91,6.5206]
[1719315631712,7.247,137.99,137.91,6.5206]
[1719315631912,56.25629566,138.01,137.91,6.5206]
[1719315632108,7.48765937,138.01,137.92,16.1555]
[1719315632334,26.55,138.04,137.92,16.1555]
[1719315632637,7.2455,138.02,137.92,16.1555]
[1719315633437,7.2446,138.04,137.92,16.1555]
[1719315633819,8.76613629,138.05,137.93,69.6889]
[1719315634017,7.48099324,138.06,137.94,59.7138]
[1719315634338,7.2423,138.08,137.98,15.7938]
[1719315634546,7.2423,138.08,137.99,0.34]
[1719315635642,7.2427,138.07,137.99,0.34]
[1719315638738,107.2418,138.09,137.99,0.34]
[1719315638948,7.2423,138.08,137.99,0.34]
[1719315639931,100.0,138.09,137.99,0.34]
[1719315640140,107.242,138.09,137.99,0.34]
[1719315640349,7.2423,138.08,137.99,0.34]
[1719315640937,7.2427,138.07,137.99,0.34]
[1719315642743,7.2423,138.08,137.99,0.34]
[1719315643323,118.1044,138.09,137.98,15.7938]
[1719315643544,26.89,138.08,137.98,15.7938]
[1719315643849,7.2429,138.07,137.98,15.7938]
[1719315644629,7.2429,138.07,137.99,0.17]
[1719315644842,7.2429,138.07,137.98,15.7938]
[1719315645925,26.89,138.08,137.98,15.7938]
[1719315646245,7.2434,138.06,137.98,15.7938]
[1719315646645,7.2444,138.04,137.98,15.7938]
[1719315646827,26.89,138.08,137.98,15.7938]
[1719315647246,44.996,138.08,137.98,15.7938]
[1719315647543,7.2441,138.05,137.98,15.7938]
[1719315647947,7.2433,138.06,137.98,15.7938]
[1719315651651,7.2427,138.07,137.98,15.7938]
[1719315651962,7.2431,138.07,137.98,15.7938]
[1719315652549,7.2433,138.06,137.98,15.7938]
[1719315655742,7.2438,138.05,137.98,15.7938]
[1719315657870,7.2443,138.04,137.98,15.7938]
[1719315658058,35.65613629,138.08,137.98,15.7938]
[1719315658372,7.2435,138.06,137.98,15.7938]
[1719315659959,7.2438,138.05,137.98,15.7938]
[1719315660266,7.2433,138.06,137.98,15.7938]
[1719315660766,8.84,138.03,137.98,24.6338]
[1719315661470,7.2433,138.06,137.98,24.6338]
[1719315661649,8.84,138.03,137.98,24.6338]
[1719315661965,7.2433,138.06,137.98,24.6338]
[1719315662171,7.2428,138.07,137.99,8.84]
[1719315662345,8.84,138.05,137.99,8.84]
[1719315662962,114.7234459,138.09,138.0,8.84]
[1719315663264,8.84,138.06,138.01,8.84]
[1719315663768,8.84,138.06,137.99,0.17]
[1719315663981,8.84,138.05,138.0,8.84]
[1719315664567,8.84,138.06,138.01,9.18]
[1719315665120,8.84,138.06,138.01,0.34]
[1719315666250,8.84,138.07,138.02,8.84]
[1719315667173,8.84,138.07,137.98,15.7938]
[1719315667348,8.84,138.06,138.0,8.84]
[1719315668456,8.84,138.05,138.0,8.84]
[1719315668765,7.4817459,138.09,137.98,15.7938]
[1719315668766,8.84,138.03,137.98,15.7938]
[1719315668978,8.84,138.02,137.98,15.7938]
[1719315670880,8.84,138.01,137.98,15.7938]
[1719315671075,7.2444,138.04,137.98,15.7938]
[1719315671076,108.84,138.04,137.98,15.7938]
[1719315671373,8.84,137.99,137.97,6.1089]
[1719315671576,8.84,138.0,137.97,6.1089]
[1719315671997,8.84,137.99,137.97,6.1089]
[1719315672653,7.5849,138.03,137.97,6.1089]
[1719315673088,33.7744,138.04,137.97,6.1089]
[1719315673378,7.2448,138.03,137.97,6.1089]
[1719315679566,7.2463,138.0,137.97,6.1089]
[1719315679890,7.2453,138.02,137.97,6.1089]
[1719315680146,26.87,138.04,137.97,6.1089]
[1719315680263,34.1145,138.04,137.97,6.1089]
[1719315680579,33.7745,138.04,137.97,6.1089]
[1719315681478,7.2438,138.05,137.97,6.1089]
[1719315681680,7.2433,138.06,137.97,6.1089]
[1719315681993,26.53,138.07,137.97,6.1089]
[1719315682177,33.7729,138.07,137.98,0.34]
[1719315682368,7.2429,138.07,137.98,0.34]
[1719315682675,7.2432,138.06,137.98,0.34]
[1719315682882,7.2437,138.05,137.98,0.34]
[1719315683285,7.2434,138.06,137.98,0.34]
[1719315684298,7.2428,138.07,137.98,0.34]
[1719315686595,22.0557,138.08,138.02,20.34]
[1719315687889,22.0557,138.08,138.02,0.34]
[1719315688210,22.0557,138.08,138.02,0.17]
[1719315689889,22.0557,138.08,137.98,20.0]
[1719315690089,22.0557,138.08,137.99,0.34]
[1719315690603,22.0557,138.08,137.98,20.0]
[1719315691108,22.0557,138.08,137.99,1.58621637]
[1719315691295,22.0557,138.08,137.98,63.57]
[1719315691998,22.0557,138.08,137.99,0.34]
[1719315696813,22.0557,138.08,137.99,0.17]
[1719315698515,22.0557,138.08,137.99,0.34]
[1719315702517,7.2408,138.11,138.0,21.8755]
[1719315702826,7.2408,138.11,138.01,20.34]
[1719315703523,7.2411,138.1,138.02,16.4519]
[1719315703813,7.2418,138.09,138.02,16.4519]
[1719315704424,0.17,138.11,138.02,16.4519]
[1719315704624,7.2412,138.1,138.02,16.4519]
[1719315707000,7.2413,138.1,138.02,16.4519]
[1719315708705,8.83,138.08,138.03,8.83]
[1719315710527,8.83,138.05,138.02,16.4519]
[1719315710712,7.2422,138.08,138.02,16.4519]
[1719315711025,8.83,138.06,138.02,16.4519]
[1719315711501,8.83,138.07,138.02,16.4519]
[1719315711701,8.83,138.07,138.02,25.2819]
[1719315712309,8.83,138.08,138.02,16.4519]
[1719315712517,8.83,138.09,138.04,8.83]
[1719315713003,8.83,138.08,138.03,8.83]
[1719315715431,8.83,138.08,138.02,16.4519]
[1719315715605,8.83,138.05,138.02,16.4519]
[1719315716001,8.83,138.06,138.02,16.4519]
[1719315716424,7.2418,138.09,138.02,16.4519]
[1719315716627,8.83,138.06,138.02,16.4519]
[1719315717805,8.83,138.04,138.02,16.4519]
[1719315718141,8.83,138.03,138.0,6.2437]
[1719315720429,100.0,138.03,137.92,23.1895]
[1719315720642,100.0,138.03,137.92,32.0195]
[1719315720643,8.83,137.97,137.92,32.0195]
[1719315720934,8.83,137.97,137.92,23.1895]
[1719315721236,8.83,137.95,137.92,23.1895]
[1719315721833,7.2465,138.0,137.92,23.1895]
[1719315722033,7.247,137.99,137.92,23.1895]
[1719315722345,8.83,137.94,137.92,23.1895]
[1719315722556,8.83,137.94,137.8,391.2]
[1719315722557,7.2518,137.9,137.79,6.3524]
[1719315722734,8.83,137.86,137.79,6.3524]
[1719315723142,8.83,137.86,137.81,8.83]
[1719315723833,107.2515,137.91,137.81,8.83]
[1719315724152,8.83,137.86,137.81,8.83]
[1719315724447,8.83,137.86,137.79,6.3524]
[1719315724649,42.5716,137.9,137.79,6.3524]
[1719315724650,7.2516,137.9,137.79,6.3524]
[1719315724952,26.58,137.94,137.79,32.9324]
[1719315725194,0.17,137.93,137.79,6.3524]
[1719315725336,12.65802273,137.93,137.79,6.3524]
[1719315725654,39.06802273,137.93,137.79,6.3524]
[1719315725860,12.48802273,137.93,137.8,0.17]
[1719315726039,12.48802273,137.93,137.8,0.34]
[1719315726235,12.48802273,137.93,137.8,20.0]
[1719315726428,100.0,137.94,137.8,20.0]
[1719315726740,26.58,137.93,137.8,20.0]
[1719315727856,26.58,137.93,137.81,0.34]
[1719315729554,26.58,137.93,137.82,15.1351]
[1719315729864,26.58,137.93,137.84,6.6458]
[1719315730054,26.58,137.93,137.85,0.34]
[1719315731765,7.2496,137.94,137.85,0.34]
[1719315732175,52.73601654,137.95,137.85,0.34]
[1719315732353,45.2355902,137.95,137.85,0.34]
[1719315732553,7.2495,137.94,137.85,0.34]
[1719315735238,7.2508,137.92,137.85,0.34]
[1719315735753,7.2512,137.91,137.84,6.6458]
[1719315737348,126.75,137.92,137.84,6.6458]
[1719315737549,0.17,137.91,137.84,6.6458]
[1719315737954,7.2525,137.89,137.84,6.6458]
[1719315739049,26.58,137.89,137.82,15.1351]
[1719315739251,7.2533,137.87,137.82,15.1351]
[1719315740214,7.2528,137.88,137.82,15.1351]
[1719315743651,100.0,137.88,137.82,15.1351]
[1719315743979,7.2544,137.85,137.81,6.4407]
[1719315744580,33.8339,137.86,137.81,6.4407]
[1719315747280,11.4064902,137.88,137.81,6.4407]
[1719315749364,7.2535,137.87,137.81,6.4407]
[1719315750479,18.6592902,137.88,137.81,6.4407]
[1719315750680,11.4064902,137.87,137.78,15.6614]
[1719315750869,7.2539,137.86,137.78,15.6614]
[1719315751270,18.6597902,137.87,137.78,15.6614]
[1719315752277,7.2537,137.86,137.78,15.6614]
[1719315754561,7.2543,137.85,137.78,15.6614]
[1719315756085,7.2539,137.86,137.78,15.6614]
[1719315758183,7.2543,137.85,137.78,15.6614]
[1719315759274,7.2539,137.86,137.78,15.6614]
[1719315761675,11.4064902,137.87,137.78,15.6614]
[1719315762074,18.6600902,137.87,137.78,15.6614]
[1719315762275,7.2537,137.86,137.78,15.6614]
[1719315764293,7.2543,137.85,137.78,15.6614]
[1719315766696,8.86,137.83,137.78,24.5214]
[1719315769397,8.86,137.82,137.78,15.6614]
[1719315770104,8.86,137.83,137.78,15.6614]
[1719315770394,8.86,137.82,137.78,15.6614]
[1719315770781,11.4064902,137.87,137.78,15.6614]
[1719315770980,7.58081218,137.9,137.82,24.9116]
[1719315771179,7.58081218,137.9,137.82,16.0516]
[1719315771180,8.86,137.88,137.82,16.0516]
[1719315771378,7.2512,137.91,137.82,24.9116]
[1719315771578,11.4064902,137.92,137.82,24.9116]
[1719315771891,11.4064902,137.92,137.83,8.86]
[1719315772296,8.86,137.88,137.83,8.86]
[1719315772592,11.4064902,137.92,137.82,16.0516]
[1719315772593,7.2515,137.91,137.82,16.0516]
[1719315772800,7.2515,137.91,137.83,0.17]
[1719315773872,11.4064902,137.92,137.85,16.123]
[1719315774188,107.2474,137.98,137.86,0.34]
[1719315774497,7.2475,137.98,137.86,0.34]
[1719315774703,7.248,137.97,137.87,6.0871]
[1719315774877,7.248,137.97,137.88,0.34]
[1719315775404,7.5768173,138.0,137.89,15.4557]
[1719315775703,7.2468,138.0,137.91,6.3659]
[1719315776084,10.77815687,138.01,137.91,6.3659]
[1719315776282,14.82013325,138.03,137.92,0.34]
[1719315776482,14.82013325,138.03,137.93,15.7318]
[1719315776693,7.2457,138.02,137.93,15.7318]
[1719315777204,14.82013325,138.03,137.93,15.7318]
[1719315777406,7.2456,138.02,137.94,0.34]
[1719315777903,7.57533325,138.03,137.94,0.34]
[1719315778411,7.2454,138.02,137.94,0.34]
[1719315779906,126.57,138.01,137.93,15.7318]
[1719315780089,0.34,138.0,137.93,15.7318]
[1719315780297,7.5867,138.0,137.93,15.7318]
[1719315780710,26.57,138.01,137.93,15.7318]
[1719315780890,26.57,138.01,137.91,6.3659]
[1719315780891,100.0,137.98,137.91,6.3659]
[1719315781089,7.2486,137.96,137.91,6.3659]
[1719315781492,33.8178,137.98,137.91,6.3659]
[1719315781806,126.57,137.98,137.89,16.5566]
[1719315782014,0.34,137.97,137.89,16.5566]
[1719315782306,7.2511,137.91,137.87,6.371]
[1719315782486,7.2507,137.92,137.87,6.371]
[1719315782686,7.2511,137.91,137.87,6.371]
[1719315782888,7.2508,137.92,137.87,6.371]
[1719315783723,7.2512,137.91,137.87,6.371]
[1719315784203,126.57,137.94,137.87,6.371]
[1719315784204,26.57,137.94,137.87,6.371]
[1719315784412,7.2486,137.96,137.87,6.371]
[1719315784610,43.75295687,137.97,137.87,6.371]
[1719315784611,44.93625687,137.97,137.87,6.371]
[1719315784797,7.2486,137.96,137.87,6.371]
[1719315785107,10.77815687,137.97,137.87,6.371]
[1719315785317,7.2485,137.96,137.88,0.34]
[1719315785483,7.2485,137.96,137.88,0.17]
[1719315785684,7.2485,137.96,137.87,6.371]
[1719315786481,7.249,137.95,137.87,6.371]
[1719315787010,7.2485,137.96,137.87,6.371]
[1719315787706,7.249,137.95,137.87,6.371]
[1719315787904,0.34,137.94,137.87,6.371]
[1719315788689,7.5898,137.94,137.87,6.371]
[1719315790092,7.25,137.93,137.87,6.371]
[1719315791710,7.5896,137.94,137.87,6.371]
[1719315792413,0.34,137.94,137.87,6.371]
[1719315793112,7.2502,137.93,137.87,6.371]
[1719315793408,7.2506,137.92,137.87,6.371]
[1719315795016,7.2502,137.93,137.87,6.371]
[1719315796894,7.4206,137.92,137.87,6.371]
[1719315798295,0.17,137.92,137.87,6.371]
[1719315798816,0.17,137.92,137.84,22.192]
[1719315798817,100.0,137.91,137.84,22.192]
[1719315798999,7.5919,137.9,137.84,22.192]
[1719315799699,37.34815687,137.92,137.84,22.192]
[1719315799905,44.59885687,137.92,137.84,22.192]
[1719315800292,7.2519,137.9,137.84,22.192]
[1719315801401,7.2522,137.89,137.84,22.192]
[1719315802098,100.17,137.88,137.8,23.2466]
[1719315802306,7.2533,137.87,137.8,23.2466]
[1719315803610,100.17,137.88,137.8,23.2466]
[1719315803611,0.17,137.86,137.8,23.2466]
[1719315803811,7.2543,137.85,137.8,23.2466]
[1719315804120,0.17,137.84,137.8,23.2466]
[1719315804321,0.17,137.85,137.8,23.2466]
[1719315806622,7.2532,137.87,137.8,23.2466]
[1719315806834,0.34,137.86,137.8,23.2466]
[1719315807626,14.83068835,137.87,137.8,23.2466]
[1719315808026,100.34,137.86,137.8,23.2466]
[1719315808222,7.2542,137.85,137.8,23.2466]
[1719315808912,7.4253,137.84,137.8,23.2466]
[1719315809106,7.2553,137.84,137.8,23.2466]
[1719315812332,100.0,137.82,137.8,23.2466]
[1719315812532,100.0,137.82,137.7,20.0]
[1719315812533,20.0,137.81,137.75,6.1764]
[1719315812711,20.0,137.81,137.76,15.5564]
[1719315813312,27.2567,137.81,137.76,15.5564]
[1719315815717,27.2567,137.81,137.76,15.5564]
[1719315816851,20.0,137.81,137.76,15.5564]
[1719315817148,7.258,137.78,137.76,15.5564]
[1719315817334,7.2584,137.77,137.76,15.5564]
[1719315817641,7.2581,137.78,137.76,15.5564]
[1719315820634,14.8389762,137.79,137.76,15.5564]
[1719315821509,100.0,137.78,137.72,22.6067]
[1719315821833,7.2595,137.75,137.72,22.6067]
[1719315822409,126.57,137.76,137.72,22.6067]
[1719315822734,7.2604,137.74,137.72,22.6067]
[1719315823012,7.4296,137.75,137.72,22.6067]
[1719315823208,100.0,137.75,137.68,16.1864]
[1719315823438,33.8306,137.73,137.68,16.1864]
[1719315823618,20.0,137.72,137.68,16.1864]
[1719315824524,33.8309,137.73,137.68,16.1864]
[1719315824725,20.0,137.72,137.68,16.1864]
[1719315826928,27.2612,137.72,137.68,16.1864]
[1719315828740,7.2616,137.71,137.68,16.1864]
[1719315829116,20.17,137.72,137.68,16.1864]
[1719315829322,27.4312,137.72,137.68,16.1864]
[1719315830318,20.0,137.72,137.68,16.1864]
[1719315832219,120.0,137.72,137.68,16.1864]
[1719315832420,7.2624,137.7,137.68,16.1864]
[1719315832728,20.0,137.69,137.68,16.1864]
[1719315833319,27.2626,137.69,137.68,16.1864]
[1719315833531,20.0,137.69,137.68,16.1864]
[1719315835453,27.2626,137.69,137.68,16.1864]
[1719315835664,20.0,137.69,137.68,16.1864]
[1719315836036,20.0,137.69,137.67,0.0430408]
[1719315838636,7.2632,137.68,137.67,0.0430408]
[1719315838865,27.2632,137.68,137.67,0.0430408]
[1719315839848,138.38135687,137.68,137.67,0.0430408]
[1719315841261,7.266,137.63,137.55,20.0]
[1719315841445,7.266,137.63,137.49,46.57]
[1719315841846,100.0,137.65,137.49,46.57]
[1719315842040,54.1755,137.64,137.49,46.57]
[1719315842244,7.2659,137.63,137.49,46.57]
[1719315842957,27.2665,137.62,137.49,46.57]
[1719315843156,7.2665,137.62,137.49,46.57]
[1719315843367,20.17,137.64,137.49,46.57]
[1719315843558,20.0,137.64,137.5,25.0]
[1719315843859,27.2653,137.64,137.51,20.0]
[1719315844066,107.2658,137.63,137.51,20.0]
[1719315844244,46.57,137.62,137.51,20.0]
[1719315844447,7.6069,137.61,137.48,533.14283176]
[1719315844767,7.2675,137.6,137.48,5.79683176]
[1719315845064,7.2675,137.6,137.42,6.06806822]
[1719315845065,27.2675,137.6,137.47,26.57]
[1719315845368,20.0,137.59,137.47,26.57]
[1719315845666,7.6069,137.61,137.47,26.57]
[1719315845962,20.0,137.6,137.48,0.17]
[1719315846158,20.0,137.6,137.48,20.17]
[1719315846546,20.0,137.6,137.49,0.17]
[1719315847645,27.2674,137.6,137.49,0.17]
[1719315847859,7.2683,137.59,137.48,20.17]
[1719315848061,20.0,137.58,137.48,20.17]
[1719315848264,7.268,137.59,137.48,20.17]
[1719315848443,20.0,137.58,137.48,20.17]
[1719315848644,38.37042626,137.6,137.48,20.17]
[1719315849364,138.37042626,137.6,137.48,20.0]
[1719315849566,7.2689,137.58,137.49,0.17]
[1719315849770,20.0,137.57,137.49,0.17]
[1719315850463,20.0,137.58,137.49,0.17]
[1719315850651,20.0,137.58,137.48,0.17]
[1719315850856,20.0,137.58,137.48,0.34]
[1719315851369,20.0,137.58,137.48,20.34]
[1719315852469,30.77815687,137.58,137.48,20.34]
[1719315852676,8.9,137.55,137.5,8.9]
[1719315852969,30.77815687,137.58,137.51,8.9]
[1719315853174,8.9,137.55,137.48,0.34]
[1719315853468,8.9,137.55,137.5,8.9]
[1719315853647,8.9,137.55,137.48,0.34]
[1719315853648,8.9,137.56,137.51,9.07]
[1719315853848,8.9,137.56,137.51,0.17]
[1719315854067,30.77815687,137.58,137.51,9.07]
[1719315854441,8.9,137.56,137.51,9.07]
[1719315854862,30.77815687,137.58,137.51,9.07]
[1719315855051,8.9,137.56,137.51,9.07]
[1719315855462,8.9,137.55,137.51,0.17]
[1719315855665,8.9,137.55,137.5,8.9]
[1719315856470,30.77815687,137.58,137.51,0.17]
[1719315856781,8.9,137.55,137.5,8.9]
[1719315857646,8.9,137.55,137.49,0.17]
[1719315857862,8.9,137.55,137.5,8.9]
[1719315858281,8.9,137.55,137.49,0.34]
[1719315858446,8.9,137.55,137.5,8.9]
[1719315859672,8.9,137.54,137.49,0.34]
[1719315859972,8.9,137.55,137.49,0.34]
[1719315860476,8.9,137.55,137.5,8.9]
[1719315860972,38.36935109,137.58,137.5,8.9]
[1719315861168,38.36935109,137.58,137.51,9.24]
[1719315861473,8.9,137.56,137.51,9.07]
[1719315861649,38.36935109,137.58,137.51,9.07]
[1719315861849,8.9,137.56,137.51,9.07]
[1719315862769,38.36935109,137.58,137.51,9.07]
[1719315862770,38.36935109,137.58,137.52,0.17]
[1719315863078,36.49119422,137.58,137.53,8.9]
[1719315863471,8.9,137.56,137.51,0.17]
[1719315863775,8.9,137.55,137.51,0.17]
[1719315865884,34.86588431,137.58,137.51,0.17]
[1719315866072,8.9,137.55,137.51,0.17]
[1719315866375,8.9,137.54,137.48,21.9387]
[1719315866556,8.9,137.54,137.49,9.24]
[1719315866756,8.9,137.54,137.49,0.17]
[1719315866973,8.9,137.52,137.45,22.0325]
[1719315867275,8.9,137.52,137.47,8.9]
[1719315867575,8.9,137.5,137.45,30.9325]
[1719315868147,35.6,137.55,137.45,22.0325]
[1719315868476,8.9,137.52,137.47,8.9]
[1719315868663,20.0,137.54,137.47,8.9]
[1719315868853,8.9,137.51,137.46,8.9]
[1719315869052,20.0,137.54,137.45,22.0325]
[1719315869251,8.9,137.5,137.45,22.0325]
[1719315869561,8.9,137.5,137.45,8.9]
[1719315869758,30.77815687,137.54,137.47,8.9]
[1719315869950,8.9,137.52,137.47,8.9]
[1719315870553,8.9,137.51,137.46,8.9]
[1719315870767,30.77815687,137.54,137.46,8.9]
[1719315870984,8.9,137.5,137.45,8.9]
[1719315871155,8.9,137.5,137.41,56.72677727]
[1719315871356,8.9,137.5,137.45,8.9]
[1719315871788,30.77815687,137.54,137.45,8.9]
[1719315871975,8.9,137.5,137.45,8.9]
[1719315872384,8.9,137.5,137.41,56.72677727]
[1719315872594,8.9,137.5,137.45,8.9]
[1719315872779,30.77815687,137.54,137.45,8.9]
[1719315872780,8.9,137.49,137.45,8.9]
[1719315873092,30.77815687,137.54,137.47,8.9]
[1719315873295,38.04915687,137.54,137.41,56.72677727]
[1719315873473,30.77815687,137.54,137.45,8.9]
[1719315873666,20.0,137.54,137.46,0.34]
[1719315873859,8.9,137.51,137.46,9.24]
[1719315874097,8.9,137.51,137.46,8.9]
[1719315875197,10.8695902,137.52,137.42,15.1877]
[1719315875399,8.9,137.47,137.42,15.1877]
[1719315875595,8.9,137.46,137.42,6.2877]
[1719315875894,8.9,137.47,137.42,15.1877]
[1719315876798,8.9,137.47,137.43,0.17]
[1719315877301,8.9,137.47,137.42,8.9]
[1719315877475,15.4107,137.49,137.41,8.9]
[1719315877800,8.9,137.46,137.41,8.9]
[1719315877979,8.9,137.46,137.37,16.1483]
[1719315878183,8.9,137.46,137.41,8.9]
[1719315878998,8.9,137.45,137.4,8.9]
[1719315879205,8.9,137.45,137.37,16.1483]
[1719315879403,8.9,137.45,137.38,0.17]
[1719315879708,8.9,137.45,137.4,8.9]
[1719315880312,8.9,137.45,137.39,0.17]
[1719315880508,8.9,137.45,137.4,8.9]
[1719315881004,8.9,137.45,137.38,0.34]
[1719315881176,8.9,137.45,137.4,8.9]
[1719315881505,22.6841,137.49,137.38,0.34]
[1719315881799,8.9,137.45,137.4,8.9]
[1719315881975,7.2744,137.47,137.37,16.1483]
[1719315882178,8.9,137.43,137.37,16.1483]
[1719315882378,66.4695902,137.48,137.37,16.1483]
[1719315882591,38.1436902,137.48,137.38,8.9]
[1719315882899,38.1436902,137.48,137.37,16.1483]
[1719315882900,20.0,137.48,137.37,16.1483]
[1719315883206,8.9,137.46,137.41,8.9]
[1719315883502,8.9,137.45,137.4,8.9]
[1719315884280,20.0,137.48,137.4,8.9]
[1719315884600,8.9,137.44,137.37,16.1483]
[1719315884783,8.9,137.44,137.38,8.9]
[1719315885174,20.0,137.48,137.38,8.9]
[1719315885396,8.9,137.44,137.38,8.9]
[1719315885576,55.6,137.48,137.38,8.9]
[1719315885774,8.9,137.44,137.35,6.4634]
[1719315886084,8.9,137.44,137.38,8.9]
[1719315886272,8.9,137.44,137.39,0.17]
[1719315886604,8.9,137.44,137.39,0.34]
[1719315886802,8.9,137.44,137.34,41.38950497]
[1719315886803,8.9,137.44,137.34,5.78950497]
[1719315887104,8.9,137.44,137.38,8.9]
[1719315887487,8.9,137.43,137.38,8.9]
[1719315888198,62.8738,137.48,137.38,8.9]
[1719315888504,8.9,137.45,137.39,9.07]
[1719315888706,8.9,137.45,137.4,0.17]
[1719315889103,8.9,137.44,137.4,0.17]
[1719315890405,8.9,137.44,137.39,8.9]
[1719315890900,55.6,137.48,137.39,8.9]
[1719315891080,20.0,137.48,137.4,0.17]
[1719315891281,27.2738,137.48,137.38,0.17]
[1719315891483,8.9,137.45,137.4,8.9]
[1719315891679,8.9,137.45,137.38,0.17]
[1719315891882,27.2738,137.48,137.39,8.9]
[1719315892178,8.9,137.45,137.39,8.9]
[1719315892391,9.78047909,137.49,137.4,8.9]
[1719315892693,8.9,137.47,137.42,8.9]
[1719315893009,35.6,137.48,137.4,8.9]
[1719315893208,8.9,137.45,137.4,8.9]
[1719315893391,118.03716029,137.51,137.4,8.9]
[1719315893594,8.9,137.45,137.4,8.9]
[1719315894413,8.9,137.44,137.39,9.07]
[1719315894715,8.9,137.45,137.4,1.8168852]
[1719315894884,8.9,137.44,137.39,8.9]
[1719315895207,8.9,137.45,137.4,10.71679028]
[1719315895514,8.9,137.45,137.41,1.81665805]
[1719315895684,8.9,137.45,137.4,8.9]
[1719315896111,7.60081251,137.51,137.38,0.34]
[1719315896297,8.9,137.47,137.42,8.9]
[1719315896503,8.9,137.46,137.38,0.34]
[1719315896813,27.2728,137.5,137.41,8.9]
[1719315897014,8.9,137.46,137.41,8.9]
[1719315897984,8.9,137.44,137.39,0.17]
[1719315898210,8.9,137.43,137.38,8.9]
[1719315898509,8.9,137.44,137.39,9.07]
[1719315899194,8.9,137.44,137.39,0.17]
[1719315899401,8.9,137.44,137.39,9.07]
[1719315899705,8.9,137.43,137.33,10.65919821]
[1719315899914,8.9,137.43,137.38,8.9]
[1719315900107,8.9,137.42,137.37,8.9]
[1719315900298,20.0,137.5,137.34,35.6]